[Event "8th Montevideo Open 2025"]
[Site "Montevideo"]
[Date "2025.02.08"]
[Round "9.1"]
[White "Coro, Lucas"]
[Black "Mussanti, Diego"]
[Result "1-0"]
[Annotator "TA"]
[ECO "E02"]
[WhiteElo "2415"]
[BlackElo "2173"]
[PlyCount "95"]
[EventDate "2025.02.01"]
[EventType "swiss"]
[EventCountry "URU"]
[SourceTitle "playchess.com"]
[Source "ChessBase"]
[SourceQuality "1"]
[TimeControl "5400+30"]

{[%evp 20,95,89,82,78,80,91,64,70,62,59,47,102,108,125,147,141,123,122,132,227,216,213,222,319,331,336,344,340,222,238,234,222,211,216,217,220,26,134,119,220,230,239,245,258,187,198,173,225,208,238,225,239,237,319,275,262,248,262,252,236,205,205,206,221,218,194,181,247,246,433,456,466,75,60,62,884,853]} 1. Nf3 {[%emt 0:01:06]} d5 {[%emt 0:00:36]} 2. g3 {[%emt 0:00:06]} Nf6 {[%emt 0:00:07]} 3. Bg2 {[%emt 0:00:06]} e6 {[%emt 0:00:13]} 4. O-O {[%emt 0:00:07]} Be7 {[%emt 0:00:05]} 5. c4 {[%emt 0:00:35]} dxc4 {[%emt 0:00:15]} 6. Qa4+ {[%emt 0:00:10]} Nbd7 {[%emt 0:00:15]} 7. Qxc4 {[%emt 0:00:07]} a6 {[%emt 0:00:26]} 8. Qc2 {[%emt 0:00:08]} O-O {[%emt 0:00:54]} 9. d4 {[%emt 0:02:19]} c5 {[%emt 0:02:26]} 10. Rd1 {[%emt 0:00:47]} cxd4 {[%emt 0:04:00]} 11. Nxd4 {[%emt 0:00:10]} Qa5 {[%emt 0:00:28]} 12. Nc3 {[%emt 0:03:45]} Nb6 {[%emt 0:06:30]} 13. h3 {[%emt 0:03:30]} Nbd5 {[%emt 0:02:15] White is slightly better.} 14. Nxd5 {[%emt 0:13:18]} Nxd5 {[%emt 0:04:50]} 15. Qb3 {[%emt 0:01:58]} Rd8 {[%emt 0:11:53]} (15... Bc5 $14) 16. Bd2 $16 {[%emt 0:01:18]} Qc5 {[%emt 0:08:01]} 17. e4 $1 {[%emt 0:01:43]} Nf6 {[%emt 0:03:57]} 18. Rac1 $1 {[%emt 0:22:06]} Qh5 {[%emt 0:01:44]} (18... Qxd4 $2 19. Ba5 $18) 19. g4 $36 {[%emt 0:01:11][%mdl 2048] White has strong initiative.} Qe5 {[%emt 0:02:26]} (19... Qg6 $16 {might work better.}) 20. f4 $1 $18 {[%emt 0:04:31]} Qb8 {[%emt 0:02:13]} (20... Qxd4+ 21. Be3 $18) 21. Ba5 {[%emt 0:01:18]} Rxd4 {[%emt 0:15:38]} (21... Rd7 $142) 22. Rxd4 {[%emt 0:00:05]} Qxf4 {[%emt 0:00:09] [#]} 23. Bd2 {[%emt 0:10:39] Active counter play!} Qe5 {[%emt 0:01:22]} 24. Be3 {[%emt 0:03:37]} h6 {[%emt 0:00:50]} 25. Rdc4 {[%emt 0:04:54]} Bd7 {[%emt 0:02:02]} 26. Bd4 $1 {[%emt 0:00:40]} (26. Qxb7 Rb8 27. Rc8+ (27. Qxa6 Bb5 $17) 27... Bxc8 (27... Rxc8 28. Rxc8+ Bxc8 29. Qxe7 $11) 28. Rxc8+ Rxc8 29. Qxc8+ Bf8) 26... Qg5 {[%emt 0:09:36]} 27. Qxb7 {[%emt 0:05:08]} Rd8 {[%emt 0:00:36]} 28. Bb6 $2 {[%emt 0:01:32]} (28. Qxa6 Bb5 29. Qa7 (29. Qa5 $2 Rxd4 30. Rc8+ Kh7 $19) 29... Bxc4 $11) (28. Qa7 $18) 28... Re8 {[%emt 0:04:03]} (28... Bd6 $1 $11 {remains equal.}) 29. Qa7 {[%emt 0:01:08][%cal Ob6e3] And now Be3! would win.} Bb5 {[%emt 0:01:09]} (29... Bd6 $16 {was called for.}) 30. Be3 {[%emt 0:00:59]} Qe5 {[%emt 0:00:24] [#]} 31. Qd4 {[%emt 0:00:33]} (31. Rc8 $2 Bd6 32. R8c4 (32. Rxe8+ $2 Kh7 $19) 32... Rd8 $19 (32... Qxb2 33. Bd4 $15)) 31... Qb8 {[%emt 0:00:30]} 32. R4c2 {[%emt 0:00:51]} Bd6 {[%emt 0:02:17]} 33. Kh1 {[%emt 0:01:20]} Bf4 {[%emt 0:00:29]} (33... Be5 {was necessary.} 34. Qa7 Qxa7 35. Bxa7 Bd3) 34. Bxf4 {[%emt 0:00:39]} Qxf4 {[%emt 0:00:09]} 35. Qf2 {[%emt 0:02:06]} Qb8 {[%emt 0:00:25]} 36. Rc7 {[%emt 0:00:26] Hoping for e5.} Rf8 {[%emt 0:00:40]} 37. Qa7 {[%emt 0:02:00]} Qd8 {[%emt 0:00:13] [#]} 38. a4 $1 {[%emt 0:02:26]} Bxa4 {[%emt 0:03:36]} 39. Qxa6 {[%emt 0:00:06]} Be8 {[%emt 0:00:56]} 40. e5 {[%emt 0:02:59]} Nd5 {[%emt 0:00:53]} 41. Rc8 {[%emt 0:00:47]} Qg5 {[%emt 0:01:00]} 42. Qe2 {[%emt 0:02:25]} Ne7 {[%emt 0:01:23]} 43. R8c5 {[%emt 0:00:41]} Ng6 {[%emt 0:00:46]} (43... Nd5 $142 44. Rc8 Bd7 45. Rxf8+ Kxf8) 44. b4 {[%emt 0:00:14] Strongly threatening b5.} Nh4 $2 {[%emt 0:01:52]} (44... Bd7 {is a better defense.} 45. b5 Rb8) 45. Be4 {[%emt 0:00:16]} Qf4 {[%emt 0:00:45][%cal Oe8b5]} 46. Qd3 {[%emt 0:01:53]} (46. Rf1 $18 {and White stays clearly on top.} Qg5 47. b5) 46... Bb5 $16 {[%emt 0:01:05]} 47. Qd4 {[%emt 0:00:17] Threatens to win with Bh7+.} (47. Qxb5 $2 Qxe4+ 48. Kh2 Qg2#) 47... Qg3 $2 {[%emt 0:02:06][%mdl 8192]} 48. R5c3 {[%emt 0:00:40] Weighted Error Value: White=0.30/Black=0.28 (precise) .  Loses game:     	---       	Black=1      Missed win:     	White=2     	---        Mistake:       	---       	Black=8      Inaccurate:     	White=1     	Black=1      OK:         	White=17    	Black=11     Best:        	White=4     	Black=2      Strong:       	White=4     	---} (48. Rxb5 $2 {too greedy.} Qxh3+ 49. Kg1 Qxg4+ 50. Kh1 Nf5 $19 (50... Nf3 $2 51. Bh7+ Kxh7 52. Qxg4 $18)) 1-0

[Event "8th Montevideo Open 2025"]
[Site "Montevideo"]
[Date "2025.02.08"]
[Round "9.2"]
[White "Coppola, Claudio"]
[Black "Vazquez, Facundo"]
[Result "0-1"]
[Annotator "TA"]
[ECO "B30"]
[WhiteElo "2220"]
[BlackElo "2404"]
[PlyCount "120"]
[EventDate "2025.02.01"]
[EventType "swiss"]
[EventCountry "URU"]
[SourceTitle "playchess.com"]
[Source "ChessBase"]
[SourceQuality "1"]
[TimeControl "5400+30"]

{[%evp 9,120,0,0,-6,-4,-4,-3,-12,-8,-2,7,-5,0,0,0,0,33,0,0,-25,-20,-20,-15,-24,-15,-47,-44,-59,-33,-35,-32,-41,-42,-45,-34,-49,-38,-38,-49,-44,-31,-37,-39,-22,0,0,-12,-29,-5,-32,-40,-29,-42,-97,-71,-119,-87,-72,-12,-104,-15,-18,-19,-6,0,0,54,47,41,50,66,64,66,66,55,62,64,0,0,0,0,0,0,0,0,0,0,0,0,-5,0,-48,-19,-14,-21,-31,-33,-59,-42,-81,-87,-80,0,0,0,-22,-18,-29,-25,-29,-8,-29973,-10814]} 1. e4 {[%emt 0:05:23]} c5 {[%emt 0:00:13]} 2. Nf3 {[%emt 0:00:23]} Nc6 3. d3 g6 4. g3 Bg7 5. Bg2 Nf6 6. c3 {B30: Sicilian: 2...Nc6 3 Bb5, lines without ...g6.} e5 7. O-O O-O 8. a3 {The position is equal.} d5 9. Nbd2 a5 10. a4 b6 11. exd5 Nxd5 12. Nc4 Bf5 13. Ng5 h6 14. Ne4 (14. g4 $5 Bc8 15. Ne4 $15) 14... Be6 15. Re1 Ra7 {[%emt 0:06:40]} 16. Qb3 $146 {[%emt 0:25:30]} (16. Ned6 Rd7 17. Nb5 Nde7 18. Qe2 Bd5 {½-½ Nenezic,M (2460)-Perunovic,M (2614) SRB-chT Kragujevac 2015 (3.2)}) 16... Rd7 {[%emt 0:00:30][%cal Od5b4]} 17. Qb5 {[%emt 0:00:30]} Qc7 {[%emt 0:00:30]} 18. Be3 {[%emt 0:00:30]} Rb8 {[%emt 0:00:30]} 19. Rad1 {[%emt 0:00:30]} Nxe3 {[%emt 0:00:30]} 20. Rxe3 {[%emt 0:00:30][%cal Ob5c6]} Ne7 {[%emt 0:00:30]} 21. Rc1 {[%emt 0:00:30]} Qd8 {[%emt 0:00:30][%cal Oe7d5]} 22. Rd1 {[%emt 0:00:30]} Nd5 {[%emt 0:00:30]} 23. Ree1 {[%emt 0:00:30]} Nc7 {[%emt 0:00:30][%csl LRb5,LRd3]} 24. Qb3 {[%emt 0:00:30]} f5 {[%emt 0:00:30]} 25. Ned2 {[%emt 0:00:30]} Rxd3 {[%emt 0:00:30]} 26. Qc2 {[%emt 0:00:30]} e4 $36 {[%emt 0:00:30][%mdl 2048] Black fights for an advantage.} 27. f3 {[%emt 0:00:30]} exf3 {[%emt 0:00:30]} 28. Bxf3 {[%emt 0:00:30]} Bf7 {[%emt 0:00:30]} 29. Be2 {[%emt 0:00:30]} Rd7 {[%emt 0:00:30]} 30. Nf3 {[%emt 0:00:30]} Rxd1 {[%emt 0:00:30]} 31. Rxd1 {[%emt 0:00:30]} (31. Qxd1 $15 Qxd1 32. Rxd1) 31... Qe7 {[%emt 0:00:30]} 32. Rd6 {[%emt 0:00:30]} ({White should try} 32. Re1) 32... Re8 {[%emt 0:00:30]} 33. Bf1 {[%emt 0:00:30] [#]} Nd5 {[%emt 0:00:30]} (33... Kh7 $1 $17 34. Rxb6 Nd5) 34. Qd2 {[%emt 0:00:30] [#]} (34. Qd3 $11 {remains equal.} Qe4 35. Qxe4 fxe4 36. Ne1) 34... Qe4 {[%emt 0:00:30]} (34... Nf6 $1 $17 {[%cal Rf6e4] aiming for ...Ne4.} 35. Rxb6 Kh7) 35. Qd3 $11 {[%emt 0:00:30]} Bf8 {[%emt 0:00:30]} 36. Rd7 {[%emt 0:00:30]} Nf6 {[%emt 0:00:30]} 37. Ra7 {[%emt 0:00:30]} Bd5 {[%emt 0:00:30]} (37... Re7 $11 38. Qxe4 fxe4 39. Rxe7 Bxe7) 38. Qxe4 $14 {[%emt 0:00:30]} fxe4 {[%emt 0:00:30]} (38... Nxe4 $6 39. Nxb6 Be6 40. Bc4 $18 (40. Rxa5 Rd8 $16)) 39. Nh4 {[%emt 0:00:30]} e3 {[%emt 0:00:30]} 40. Be2 {[%emt 0:00:30]} g5 {[%emt 0:00:30]} 41. Nf5 {[%emt 0:00:30]} Bxc4 {[%emt 0:00:30]} 42. Bxc4+ {[%emt 0:00:30]} Kh8 {[%emt 0:00:30]} 43. Kf1 {[%emt 0:00:30]} (43. Rf7 $1 $14 Ng4 (43... e2 44. Bxe2 Ne4 45. g4 $16) 44. Be2) 43... Re5 $11 {[%emt 0:00:30]} 44. Bd3 {[%emt 0:00:30] Black must now prevent Rf7.} c4 {[%emt 0:00:30]} 45. Bc2 {[%emt 0:00:30]} e2+ {[%emt 0:00:30]} 46. Ke1 {[%emt 0:00:30]} Bc5 {[%emt 0:00:30][%cal Oc5f2] ( -> ...Bf2+!)} 47. Ra8+ $1 {[%emt 0:00:30]} (47. Nxh6 Bf2+ 48. Kxf2 e1=Q+ (48... e1=B+ $2 49. Kf1 $18) 49. Kg2 Re2+ 50. Kh3 Qf1#) 47... Ng8 {[%emt 0:00:30]} 48. Nd4 $1 {[%emt 0:00:30]} (48. Nxh6 $2 Bf2+ 49. Kxf2 e1=Q+ $19 (49... e1=B+ $2 50. Kf3 $18)) 48... Kg7 {[%emt 0:00:30]} 49. Nxe2 {[%emt 0:00:30]} Nf6 {[%emt 0:00:30]} 50. Rd8 {[%emt 0:00:30]} (50. Ra7+ $11 {is more appropriate.} Kf8 51. Rc7) 50... Ng4 {[%emt 0:00:30]} 51. Rd7+ {[%emt 0:00:30]} Kf6 {[%emt 0:00:30]} 52. h3 {[%emt 0:00:30]} Ne3 {[%emt 0:00:30]} 53. Bh7 {[%emt 0:00:30]} h5 {[%emt 0:00:30]} 54. Kd2 {[%emt 0:00:30]} Nf1+ {[%emt 0:00:30]} 55. Kd1 {[%emt 0:00:30]} Bf2 {[%emt 0:00:30]} (55... Re3 $17 56. h4 Nxg3 57. hxg5+ Kxg5 (57... Ke6 $2 58. g6 $18) 58. Nxg3 Rxg3 59. Rd5+ Kg4 60. Bf5+ Kf4) 56. Bg8 {[%emt 0:00:30]} Re7 {[%emt 0:00:30]} (56... Nxg3 $2 {is the wrong capture.} 57. Rf7+ (57. Bxc4 Nf5 $15) 57... Kg6 58. Rxf2 $18) 57. Rxe7 {[%emt 0:00:30]} Kxe7 {[%emt 0:00:30]} 58. Kc1 {[%emt 0:00:30]} Bxg3 {[%emt 0:00:30]} (58... Nxg3 59. Bxc4 g4 60. hxg4 $11) 59. Bxc4 {[%emt 0:00:30]} Be5 {[%emt 0:00:30]} 60. Nf4 $2 {[%emt 0:00:30][%mdl 8192]} Bxf4+ {[%emt 0:00:30] Weighted Error Value: White=0.24 (precise) /Black=0.12 (very precise)   Loses game:     	White=1     	---        Mistake:       	White=5     	Black=4      Inaccurate:     	White=5     	Black=3      OK:         	White=18    	Black=19     Best:        	White=6     	Black=5      Strong:       	White=2     	---} 0-1

[Event "8th Montevideo Open 2025"]
[Site "Montevideo"]
[Date "2025.02.08"]
[Round "9.4"]
[White "Hoffman, Alejandro"]
[Black "Carbone, Diego"]
[Result "1/2-1/2"]
[Annotator "TA"]
[ECO "D38"]
[WhiteElo "2368"]
[BlackElo "2216"]
[PlyCount "20"]
[EventDate "2025.02.01"]
[EventType "swiss"]
[EventCountry "URU"]
[SourceTitle "playchess.com"]
[Source "ChessBase"]
[SourceQuality "1"]
[TimeControl "5400+30"]

{[%evp 15,20,8,23,0,22,25,39]} 1. d4 {[%emt 0:00:05]} d5 {[%emt 0:03:01]} 2. c4 {[%emt 0:00:35]} e6 {[%emt 0:01:04]} 3. Nc3 {[%emt 0:00:20]} Nf6 {[%emt 0:00:38]} 4. cxd5 {[%emt 0:01:35]} exd5 {[%emt 0:00:09]} 5. Bg5 {[%emt 0:00:56]} Bb4 {[%emt 0:00:21]} 6. Qa4+ Nc6 {[%emt 0:00:30]} 7. e3 h6 {[%emt 0:00:30]} 8. Bxf6 Qxf6 {[%emt 0:00:30]} 9. Nf3 O-O {[%emt 0:00:30]} 10. Be2 Qg6 {[%emt 0:00:30] OK:         	White=1     	Black=1} 1/2-1/2

[Event "8th Montevideo Open 2025"]
[Site "Montevideo"]
[Date "2025.02.08"]
[Round "9.5"]
[White "Shoker, Samy"]
[Black "Meza, Anahi"]
[Result "1-0"]
[Annotator "TA"]
[ECO "A21"]
[WhiteElo "2446"]
[BlackElo "2038"]
[PlyCount "55"]
[EventDate "2025.02.01"]
[EventType "swiss"]
[EventCountry "URU"]
[SourceTitle "playchess.com"]
[Source "ChessBase"]
[SourceQuality "1"]
[TimeControl "5400+30"]

{[%evp 10,55,4,10,18,0,21,30,66,29,49,37,71,83,84,81,77,64,73,37,58,34,137,125,172,92,478,470,575,532,441,429,885,878,1264,1218,1209,1196,1224,1211,1578,1734,1737,1703,1537,1539,2019,1968]} 1. Nf3 {[%emt 0:00:06]} f5 {[%emt 0:00:53]} 2. g3 {[%emt 0:00:14]} Nf6 {[%emt 0:00:12]} 3. Bg2 {[%emt 0:00:05]} d6 {[%emt 0:00:58]} 4. d3 {[%emt 0:03:26]} e5 {[%emt 0:01:23][%cal Be7e5,Be5e4][%mdl 32]} 5. c4 {[%emt 0:26:50]} Be7 {[%emt 0:00:30]} 6. Nc3 {[%emt 0:00:30]} c6 {[%emt 0:00:30] A21: English Opening: 1...e5 2 Nc3.} 7. Rb1 {[%emt 0:00:30]} O-O {[%emt 0:00:30]} 8. b4 {[%emt 0:00:30]} e4 {[%emt 0:00:30] White has an edge.} 9. Nd4 {[%emt 0:00:30]} d5 {[%emt 0:00:30]} 10. O-O {[%emt 0:00:30]} Qe8 $146 {[%emt 0:00:30]} (10... b6 11. cxd5 Nxd5 12. Qb3 Bf6 13. dxe4 fxe4 14. Nxc6 Nxc6 15. Bxe4 Bxc3 16. Bxd5+ Kh8 17. Bxc6 {1-0 Machado,L (1758)-Andersson,C (1455) Porto Alegre op 2023 (5)}) 11. Qb3 {[%emt 0:00:30][%cal Rc4d5]} Qf7 {[%emt 0:00:30]} 12. cxd5 {[%emt 0:00:30]} cxd5 {[%emt 0:00:30]} 13. b5 {[%emt 0:00:30] Against Nc6} Bc5 {[%emt 0:00:30]} 14. e3 {[%emt 0:00:30]} Rd8 {[%emt 0:00:30]} 15. Ba3 {[%emt 0:00:30]} (15. dxe4 {simplifies} dxe4 16. Rd1 Qxb3 17. axb3 Bxd4 18. Rxd4 Rxd4 19. exd4 Be6 20. f3) 15... Bxa3 {[%emt 0:00:30]} (15... Bxd4 $14 16. exd4 Be6) 16. Qxa3 $16 {[%emt 0:00:30]} Ng4 {[%emt 0:00:30]} (16... Nbd7 $16) 17. b6 {[%emt 0:00:30]} ({White should play} 17. dxe4 $18 fxe4 18. Rbd1) 17... Qh5 {[%emt 0:00:30][%mdl 8192] Black cannot hold the game after this.} (17... Nc6 $16 {is a better chance.}) 18. h3 $18 {[%emt 0:00:30] White is clearly winning. Active counter play!} (18. bxa7 $2 Qxh2#) 18... Ne5 {[%emt 0:00:30] [#]} 19. Qxa7 $1 {[%emt 0:00:30][%mdl 512]} f4 {[%emt 0:00:30][%cal Bf5f4,Bf4f3][%mdl 32]} 20. Nxd5 {[%emt 0:00:30]} ({Weaker is} 20. Qxa8 f3 $18) 20... Rxd5 {[%emt 0:00:30]} (20... Rxa7 $142 21. bxa7 Nbc6 22. Nxc6 (22. a8=R f3 $11) (22. Nxf4 Nf3+ 23. Bxf3 Qa5 $18) 22... f3) 21. Qxa8 {[%emt 0:00:30]} f3 {[%emt 0:00:30]} 22. Qxb8 {[%emt 0:00:30]} Rd8 {[%emt 0:00:30]} 23. Rfc1 {[%emt 0:00:30]} Qe8 {[%emt 0:00:30]} 24. Bf1 {[%emt 0:00:30]} Bxh3 {[%emt 0:00:30] [#]} 25. Qxd8 $3 {[%emt 0:00:30]} Qxd8 {[%emt 0:00:30]} 26. Bxh3 {[%emt 0:00:30]} Kf7 {[%emt 0:00:30]} 27. Rc7+ {[%emt 0:00:30]} Kg6 {[%emt 0:00:30]} 28. dxe4 {[%emt 0:00:30] Weighted Error Value: White=0.12 (very precise) /Black=1.43  Loses game:     	---       	Black=1      Mistake:       	White=1     	Black=3      Inaccurate:     	White=2     	Black=3      OK:         	White=4     	Black=4      Best:        	White=2     	---        Brilliant:      	White=1     	---} 1-0

[Event "8th Montevideo Open 2025"]
[Site "Montevideo"]
[Date "2025.02.08"]
[Round "9.6"]
[White "Izquierdo, Daniel"]
[Black "Roselli Mailhe, Bernardo"]
[Result "0-1"]
[Annotator "RC"]
[ECO "A48"]
[WhiteElo "2069"]
[BlackElo "2342"]
[PlyCount "42"]
[EventDate "2025.02.01"]
[EventType "swiss"]
[EventCountry "URU"]
[SourceTitle "playchess.com"]
[Source "ChessBase"]
[SourceQuality "1"]
[TimeControl "5400+30"]

1. Nf3 {[%emt 0:24:20]} Nf6 {[%emt 0:34:15]} 2. e3 {[%emt 0:00:30]} g6 {[%emt 0:00:30]} 3. b3 {[%emt 0:00:30]} Bg7 {[%emt 0:00:30]} 4. Bb2 {[%emt 0:00:30]} O-O {[%emt 0:00:30]} 5. d4 {[%emt 0:00:30]} d6 {[%emt 0:00:30]} 6. Nbd2 {[%emt 0:00:30]} Nbd7 {[%emt 0:00:30]} 7. Be2 {[%emt 0:00:30]} Re8 {[%emt 0:00:30]} 8. O-O {[%emt 0:00:30]} a5 {[%emt 0:00:30]} 9. a4 {[%emt 0:00:30]} b6 10. Re1 {[%emt 1:07:10]} Bb7 11. Bd3 {[%emt 0:00:00]} e5 {[%emt 0:01:30]} 12. e4 {[%emt 0:00:00]} exd4 {[%emt 0:04:31]} 13. Nxd4 {[%emt 0:00:00]} d5 {[%emt 0:00:47]} 14. exd5 {[%emt 0:00:00]} Rxe1+ {[%emt 0:00:41]} 15. Qxe1 {[%emt 0:00:00]} Nxd5 {[%emt 0:00:12]} 16. Bb5 {[%emt 0:00:00]} Nf4 {[%emt 0:08:15]} 17. Nc6 {[%emt 0:00:00]} Qg5 {[%emt 0:13:05]} 18. Ne7+ {[%emt 0:00:00]} Kf8 {[%emt 0:01:04]} 19. Bxg7+ {[%emt 0:00:00]} Kxg7 {[%emt 0:00:08]} 20. g3 {[%emt 0:00:00]} Re8 {[%emt 0:03:50]} 21. Nf5+ {[%emt 0:00:00]} Qxf5 {[%emt 0:00:38]} 0-1

[Event "8th Montevideo Open 2025"]
[Site "Montevideo"]
[Date "2025.02.08"]
[Round "9.7"]
[White "Larrea, Manuel"]
[Black "Komarov, Leonid"]
[Result "1/2-1/2"]
[Annotator "NA"]
[ECO "C18"]
[WhiteElo "2265"]
[BlackElo "1956"]
[PlyCount "36"]
[EventDate "2025.02.01"]
[EventType "swiss"]
[EventCountry "URU"]
[SourceTitle "playchess.com"]
[Source "ChessBase"]
[SourceQuality "1"]
[TimeControl "5400+30"]

1. e4 {[%emt 0:00:04]} e6 {[%emt 0:00:05]} 2. d4 {[%emt 0:00:07]} d5 {[%emt 0:00:02]} 3. Nc3 {[%emt 0:00:07]} Bb4 {[%emt 0:00:04]} 4. e5 {[%emt 0:00:36]} c5 {[%emt 0:00:04]} 5. a3 {[%emt 0:00:06]} Bxc3+ 6. bxc3 {[%emt 0:00:05]} Ne7 {[%emt 0:00:04]} 7. Qg4 {[%emt 0:00:37]} Qc7 {[%emt 0:00:13]} 8. Qxg7 {[%emt 0:01:22]} Rg8 {[%emt 0:00:05]} 9. Qxh7 {[%emt 0:00:04]} cxd4 {[%emt 0:00:31]} 10. Ne2 {[%emt 0:00:07]} dxc3 {[%emt 0:00:06]} 11. f4 {[%emt 0:00:29]} Nbc6 {[%emt 0:00:13]} 12. Qd3 {[%emt 0:02:57]} Bd7 {[%emt 0:13:36]} 13. h4 {[%emt 0:00:30]} Nf5 {[%emt 0:00:30]} 14. h5 {[%emt 0:00:30]} O-O-O {[%emt 0:00:30]} 15. h6 {[%emt 0:00:30]} Rg6 {[%emt 0:00:30]} 16. h7 {[%emt 0:00:30]} Rh8 {[%emt 0:00:30]} 17. Qxc3 {[%emt 0:00:30]} Rg7 {[%emt 0:00:30]} 18. Qd3 {[%emt 0:00:30]} Na5 {[%emt 0:00:30]} 1/2-1/2

[Event "8th Montevideo Open 2025"]
[Site "Montevideo"]
[Date "2025.02.08"]
[Round "9.13"]
[White "Balseca Moreno, Diego"]
[Black "Martello, Benjamin"]
[Result "1/2-1/2"]
[Annotator "NA RC"]
[ECO "A01"]
[WhiteElo "2269"]
[BlackElo "1968"]
[PlyCount "20"]
[EventDate "2025.02.01"]
[EventType "swiss"]
[EventCountry "URU"]
[SourceTitle "playchess.com"]
[Source "ChessBase"]
[SourceQuality "1"]
[TimeControl "5400+30"]

1. b3 {[%emt 0:16:00]} e5 {[%emt 0:00:06]} 2. Bb2 {[%emt 0:00:07]} Nc6 {[%emt 0:00:02]} 3. e3 {[%emt 0:00:12]} d5 {[%emt 0:00:03]} 4. Bb5 {[%emt 0:00:09]} Nge7 {[%emt 0:00:04]} 5. Bxe5 {[%emt 0:02:35]} a6 {[%emt 0:00:08]} 6. Bxc6+ {[%emt 0:00:10]} Nxc6 {[%emt 0:00:02]} 7. Bg3 {[%emt 0:00:33]} h5 {[%emt 0:00:12]} 8. h4 {[%emt 0:00:22]} Bf5 {[%emt 0:02:43]} 9. c3 {[%emt 0:09:38]} Bd3 {[%emt 0:02:11]} 10. Ne2 {[%emt 0:00:13]} Bd6 {[%emt 0:05:05]} 1/2-1/2

[Event "8th Montevideo Open 2025"]
[Site "Montevideo"]
[Date "2025.02.08"]
[Round "9.15"]
[White "Saralegui, Mario"]
[Black "Barandiaran, Gabriel"]
[Result "1-0"]
[Annotator "NA RC"]
[ECO "E91"]
[WhiteElo "2034"]
[BlackElo "1830"]
[PlyCount "62"]
[EventDate "2025.02.01"]
[EventType "swiss"]
[EventCountry "URU"]
[SourceTitle "playchess.com"]
[Source "ChessBase"]
[SourceQuality "1"]
[TimeControl "5400+30"]

1. d4 {[%emt 1:31:00]} Nf6 {[%emt 0:10:12]} 2. c4 {[%emt 0:00:00]} g6 {[%emt 0:00:13]} 3. Nc3 {[%emt 0:00:00]} Bg7 {[%emt 0:00:05]} 4. e4 {[%emt 0:00:00]} d6 {[%emt 0:00:05]} 5. Be2 {[%emt 0:00:00]} Nbd7 {[%emt 0:01:19]} 6. Nf3 {[%emt 0:00:00]} O-O {[%emt 0:01:19]} 7. O-O {[%emt 0:00:00]} c5 {[%emt 0:00:41]} 8. d5 {[%emt 0:00:00]} Qc7 {[%emt 0:06:05]} 9. h3 {[%emt 0:00:00]} Ne8 {[%emt 0:05:20]} 10. Bg5 {[%emt 0:00:00]} f6 {[%emt 0:01:32]} 11. Bh4 {[%emt 0:00:00]} Ne5 {[%emt 0:00:32]} 12. Bg3 {[%emt 0:00:00]} Nxf3+ {[%emt 0:03:34]} 13. Bxf3 {[%emt 0:00:00]} f5 {[%emt 0:00:52]} 14. exf5 {[%emt 0:00:00]} Bxf5 {[%emt 0:00:29]} 15. Re1 {[%emt 0:00:00]} Nf6 {[%emt 0:02:47]} 16. Qd2 {[%emt 0:00:00]} Rae8 {[%emt 0:00:47]} 17. Be2 {[%emt 0:00:00]} Qd7 {[%emt 0:12:44]} 18. Bf1 {[%emt 0:00:00]} Nh5 {[%emt 0:00:34]} 19. Bh2 {[%emt 0:00:00]} Nf6 {[%emt 0:15:17]} 20. g4 {[%emt 0:00:00]} Bxg4 {[%emt 0:00:35]} 21. hxg4 {[%emt 0:00:00]} Qxg4+ {[%emt 0:14:48]} 22. Bg2 {[%emt 0:00:00]} Qxc4 {[%emt 0:00:17]} 23. Nd1 {[%emt 0:00:00]} Qh4 {[%emt 0:06:11]} 24. Bg3 {[%emt 0:00:00]} Qh5 {[%emt 0:00:13]} 25. Ne3 {[%emt 0:00:00]} Nd7 {[%emt 0:02:29]} 26. Qe2 {[%emt 0:00:00]} Qxe2 {[%emt 0:03:29]} 27. Rxe2 {[%emt 0:00:00]} Ne5 {[%emt 0:02:14]} 28. Rd1 {[%emt 0:00:00]} Nf3+ {[%emt 0:00:25]} 29. Bxf3 {[%emt 0:00:00]} Rxf3 {[%emt 0:00:07]} 30. Nc4 {[%emt 0:00:00]} Bd4 {[%emt 0:00:22]} 31. Kg2 {[%emt 0:00:00]} Ref8 {[%emt 0:10:23]} 1-0